[Event "*** Titled Tuesday 3|2 Blitz (Late)"]
[Site "Chess.com"]
[Date "2016.12.06"]
[Round "4"]
[White "visa"]
[Black "CemilCan"]
[Result "0-1"]
[WhiteElo "2151"]
[BlackElo "2506"]
[TimeControl "180+2"]
[EndTime "17:41:52 PST"]
[Termination "CemilCan won by checkmate"]

1. e4 {[%clk 0:03:02]} 1... e6 {[%clk 0:02:59.7]} 2. d3 {[%clk 0:03:02.2]} 2...
c5 {[%clk 0:02:59.9]} 3. Nd2 {[%clk 0:03:01.6]} 3... Nc6 {[%clk 0:03:01.4]} 4.
Ngf3 {[%clk 0:03:02.6]} 4... g6 {[%clk 0:03:03]} 5. g3 {[%clk 0:03:03.4]} 5...
Bg7 {[%clk 0:03:04.6]} 6. Bg2 {[%clk 0:03:03.1]} 6... Nge7 {[%clk 0:03:06.3]} 7.
O-O {[%clk 0:03:01]} 7... O-O {[%clk 0:03:07.9]} 8. a4 {[%clk 0:02:58.6]} 8...
d6 {[%clk 0:03:09.3]} 9. Nc4 {[%clk 0:02:54.9]} 9... h6 {[%clk 0:03:09.6]} 10.
Bf4 {[%clk 0:02:36.9]} 10... e5 {[%clk 0:03:10]} 11. Be3 {[%clk 0:02:26.5]}
11... Be6 {[%clk 0:03:11.6]} 12. Qd2 {[%clk 0:02:07.7]} 12... Kh7 {[%clk
0:03:13.2]} 13. b3 {[%clk 0:01:55.5]} 13... Qd7 {[%clk 0:03:13.9]} 14. Ne1
{[%clk 0:01:50.2]} 14... b6 {[%clk 0:03:14.5]} 15. Rd1 {[%clk 0:01:40.3]} 15...
f5 {[%clk 0:03:14.6]} 16. f4 {[%clk 0:01:39.9]} 16... fxe4 {[%clk 0:03:11.6]}
17. fxe5 {[%clk 0:01:27.3]} 17... Nxe5 {[%clk 0:03:04.8]} 18. Nxe5 {[%clk
0:01:15.6]} 18... Rxf1+ {[%clk 0:03:05.1]} 19. Bxf1 {[%clk 0:01:10]} 19... Bxe5
{[%clk 0:03:05.3]} 20. Bxh6 {[%clk 0:01:05.2]} 20... Nf5 {[%clk 0:03:04.9]} 21.
Bg5 {[%clk 0:00:59.8]} 21... e3 {[%clk 0:03:05.9]} 22. Qg2 {[%clk 0:00:52.5]}
22... Rf8 {[%clk 0:03:06.1]} 23. g4 {[%clk 0:00:45.6]} 23... Nd4 {[%clk
0:02:50.8]} 24. h3 {[%clk 0:00:28.9]} 24... Rf2 {[%clk 0:02:50]} 25. Qa8 {[%clk
0:00:11.4]} 25... Qf7 {[%clk 0:02:50.7]} 26. Ng2 {[%clk 0:00:09.1]} 26... e2
{[%clk 0:02:49]} 27. Bxe2 {[%clk 0:00:10]} 27... Nxe2+ {[%clk 0:02:50]} 28. Kh1
{[%clk 0:00:10.2]} 28... Rf1+ {[%clk 0:02:51.4]} 29. Rxf1 {[%clk 0:00:10.8]}
29... Qxf1# {[%clk 0:02:53.3]} 0-1

[Event "*** Titled Tuesday 3|2 Blitz (Late)"]
[Site "Chess.com"]
[Date "2016.12.06"]
[Round "4"]
[White "Genghis_K"]
[Black "GrigorGrigorov"]
[Result "1-0"]
[WhiteElo "2681"]
[BlackElo "2464"]
[TimeControl "180+2"]
[EndTime "17:43:40 PST"]
[Termination "Genghis_K won by resignation"]

1. d4 {[%clk 0:02:44.5]} 1... Nf6 {[%clk 0:03:00.3]} 2. Nf3 {[%clk 0:02:45.1]}
2... c5 {[%clk 0:02:57.2]} 3. d5 {[%clk 0:02:45]} 3... g6 {[%clk 0:02:58.1]} 4.
Nc3 {[%clk 0:02:46]} 4... Bg7 {[%clk 0:02:58.2]} 5. e4 {[%clk 0:02:47.5]} 5...
d6 {[%clk 0:02:58.6]} 6. Bb5+ {[%clk 0:02:48.7]} 6... Bd7 {[%clk 0:02:49.8]} 7.
a4 {[%clk 0:02:40.9]} 7... O-O {[%clk 0:02:50.1]} 8. h3 {[%clk 0:02:32.4]} 8...
e5 {[%clk 0:02:14.9]} 9. dxe6 {[%clk 0:02:11.6]} 9... Bxe6 {[%clk 0:02:15.1]}
10. Ng5 {[%clk 0:02:13.2]} 10... d5 {[%clk 0:02:10.5]} 11. exd5 {[%clk
0:02:10.9]} 11... Nxd5 {[%clk 0:02:08.3]} 12. Nxe6 {[%clk 0:02:05.6]} 12... fxe6
{[%clk 0:02:08.7]} 13. Ne4 {[%clk 0:02:05.8]} 13... a6 {[%clk 0:01:17.7]} 14.
Bc4 {[%clk 0:02:02.2]} 14... Rf5 {[%clk 0:00:54.9]} 15. O-O {[%clk 0:02:03.2]}
15... Qe7 {[%clk 0:00:50.8]} 16. c3 {[%clk 0:02:04.2]} 16... Nc6 {[%clk
0:00:50.9]} 17. Qe2 {[%clk 0:01:59.6]} 17... Raf8 {[%clk 0:00:46.4]} 18. a5
{[%clk 0:01:59.3]} 18... Kh8 {[%clk 0:00:46.2]} 19. Bd2 {[%clk 0:01:57.5]} 19...
Ne5 {[%clk 0:00:45.9]} 20. Ba2 {[%clk 0:01:58.1]} 20... Nf4 {[%clk 0:00:46.4]}
21. Bxf4 {[%clk 0:01:55.5]} 21... Rxf4 {[%clk 0:00:48.3]} 22. Rad1 {[%clk
0:01:56.9]} 22... g5 {[%clk 0:00:41.1]} 23. Bb1 {[%clk 0:01:54.4]} 23... g4
{[%clk 0:00:41]} 24. hxg4 {[%clk 0:01:55.4]} 24... Rxg4 {[%clk 0:00:40.8]} 25.
f3 {[%clk 0:01:56.4]} 25... Rh4 {[%clk 0:00:37.2]} 26. g3 {[%clk 0:01:50.8]}
26... Rh6 {[%clk 0:00:37.2]} 27. f4 {[%clk 0:01:52.4]} 27... Nf7 {[%clk
0:00:34.3]} 28. Nf2 {[%clk 0:01:49.4]} 28... Rg8 {[%clk 0:00:30.7]} 29. Kg2
{[%clk 0:01:45.3]} 29... Bf8 {[%clk 0:00:23.2]} 30. Rh1 {[%clk 0:01:45.6]} 30...
Rxh1 {[%clk 0:00:20.2]} 31. Rxh1 {[%clk 0:01:47.5]} 31... Nh6 {[%clk 0:00:21.5]}
32. Ne4 {[%clk 0:01:41.6]} 32... Nf5 {[%clk 0:00:16.2]} 33. Ng5 {[%clk 0:01:40]}
33... h6 {[%clk 0:00:15.6]} 34. Bxf5 {[%clk 0:01:37.4]} 34... exf5 {[%clk
0:00:16.7]} 35. Rxh6+ {[%clk 0:01:38.4]} 1-0

[Event "*** Titled Tuesday 3|2 Blitz (Late)"]
[Site "Chess.com"]
[Date "2016.12.06"]
[Round "4"]
[White "micfel"]
[Black "spirals5"]
[Result "0-1"]
[WhiteElo "2268"]
[BlackElo "2284"]
[TimeControl "180+2"]
[EndTime "17:43:48 PST"]
[Termination "spirals5 won by resignation"]

1. e4 {[%clk 0:03:00.1]} 1... c5 {[%clk 0:03:00.4]} 2. Nf3 {[%clk 0:03:00.7]}
2... d6 {[%clk 0:03:00.9]} 3. d4 {[%clk 0:03:01.5]} 3... cxd4 {[%clk 0:03:01.4]}
4. Nxd4 {[%clk 0:03:02.5]} 4... Nf6 {[%clk 0:03:01.8]} 5. Nc3 {[%clk 0:03:03.2]}
5... a6 {[%clk 0:03:02.6]} 6. Be2 {[%clk 0:03:03.3]} 6... e5 {[%clk 0:03:02.9]}
7. Nf3 {[%clk 0:03:02.7]} 7... Be7 {[%clk 0:03:04]} 8. O-O {[%clk 0:03:01.9]}
8... h6 {[%clk 0:03:04]} 9. Be3 {[%clk 0:03:01.8]} 9... Be6 {[%clk 0:03:04.4]}
10. h3 {[%clk 0:03:00.8]} 10... Nbd7 {[%clk 0:03:05.1]} 11. Qd2 {[%clk
0:03:01.5]} 11... Rc8 {[%clk 0:03:04.6]} 12. Rad1 {[%clk 0:03:01.7]} 12... O-O
{[%clk 0:03:04.3]} 13. Qc1 {[%clk 0:02:56]} 13... Re8 {[%clk 0:02:54.5]} 14. a3
{[%clk 0:02:55.6]} 14... Bf8 {[%clk 0:02:53.8]} 15. Rd2 {[%clk 0:02:52.8]} 15...
Rxc3 {[%clk 0:02:50.7]} 16. bxc3 {[%clk 0:02:52.8]} 16... Nxe4 {[%clk
0:02:51.3]} 17. Rd3 {[%clk 0:02:53.7]} 17... Bc4 {[%clk 0:02:46.7]} 18. Rfd1
{[%clk 0:02:48.7]} 18... Bxd3 {[%clk 0:02:47]} 19. cxd3 {[%clk 0:02:49.4]} 19...
Nef6 {[%clk 0:02:44.8]} 20. d4 {[%clk 0:02:46.5]} 20... e4 {[%clk 0:02:45.5]}
21. Nd2 {[%clk 0:02:46.6]} 21... d5 {[%clk 0:02:46.2]} 22. c4 {[%clk 0:02:45.5]}
22... dxc4 {[%clk 0:02:44.2]} 23. Nxc4 {[%clk 0:02:45.9]} 23... b5 {[%clk
0:02:44]} 24. Ne5 {[%clk 0:02:40.2]} 24... Nd5 {[%clk 0:02:42.7]} 25. Nc6 {[%clk
0:02:36.5]} 25... Qb6 {[%clk 0:02:22.1]} 26. Ne5 {[%clk 0:02:20.4]} 26... Nxe5
{[%clk 0:02:08]} 27. dxe5 {[%clk 0:02:20.3]} 27... Nxe3 {[%clk 0:02:08.5]} 28.
fxe3 {[%clk 0:02:21.1]} 28... Rxe5 {[%clk 0:01:54.9]} 29. Kh1 {[%clk 0:02:16.8]}
29... Qc5 {[%clk 0:01:43.7]} 30. Qd2 {[%clk 0:02:14.4]} 30... g6 {[%clk
0:01:36.5]} 31. Rf1 {[%clk 0:02:12.5]} 31... Rf5 {[%clk 0:01:34]} 32. Rd1 {[%clk
0:02:11.1]} 32... Qxa3 {[%clk 0:01:32.3]} 33. Bg4 {[%clk 0:02:10.4]} 33... Rf6
{[%clk 0:01:32.2]} 34. Qd8 {[%clk 0:01:58.9]} 34... Rd6 {[%clk 0:01:11]} 35.
Rxd6 {[%clk 0:01:58.8]} 35... Qxd6 {[%clk 0:01:11]} 36. Qe8 {[%clk 0:01:58.7]}
36... h5 {[%clk 0:01:06.2]} 37. Bd7 {[%clk 0:01:51.4]} 37... Qe7 {[%clk
0:01:05.7]} 38. Qc8 {[%clk 0:01:50.6]} 38... b4 {[%clk 0:01:04]} 39. Ba4 {[%clk
0:01:49]} 39... Qc5 {[%clk 0:00:58.3]} 40. Qxa6 {[%clk 0:01:38.7]} 40... Qxe3
{[%clk 0:00:51.7]} 41. Bb5 {[%clk 0:01:24.6]} 41... Bc5 {[%clk 0:00:47.5]} 0-1

[Event "*** Titled Tuesday 3|2 Blitz (Late)"]
[Site "Chess.com"]
[Date "2016.12.06"]
[Round "4"]
[White "Fh2411"]
[Black "MattyDPerrine"]
[Result "1-0"]
[WhiteElo "2363"]
[BlackElo "2228"]
[TimeControl "180+2"]
[EndTime "17:44:34 PST"]
[Termination "Fh2411 won on time"]

1. d4 {[%clk 0:03:00.1]} 1... Nf6 {[%clk 0:02:58.4]} 2. Nf3 {[%clk 0:03:00.9]}
2... c5 {[%clk 0:02:58.9]} 3. d5 {[%clk 0:02:51.4]} 3... e6 {[%clk 0:02:59.3]}
4. c4 {[%clk 0:02:52]} 4... b5 {[%clk 0:03:00.1]} 5. dxe6 {[%clk 0:02:36.5]}
5... fxe6 {[%clk 0:03:02]} 6. cxb5 {[%clk 0:02:36.5]} 6... d5 {[%clk 0:03:03.2]}
7. e3 {[%clk 0:02:36.2]} 7... Bd6 {[%clk 0:02:40.9]} 8. Nc3 {[%clk 0:02:33.3]}
8... Nbd7 {[%clk 0:02:41.7]} 9. a4 {[%clk 0:02:26.6]} 9... O-O {[%clk
0:02:41.5]} 10. Be2 {[%clk 0:02:27.5]} 10... c4 {[%clk 0:02:38.5]} 11. e4 {[%clk
0:02:13.6]} 11... Bb4 {[%clk 0:02:27.8]} 12. exd5 {[%clk 0:02:08.2]} 12... exd5
{[%clk 0:02:25.2]} 13. O-O {[%clk 0:02:03.7]} 13... Nc5 {[%clk 0:02:09.9]} 14.
Be3 {[%clk 0:02:00.3]} 14... Nb3 {[%clk 0:02:08.2]} 15. Nxd5 {[%clk 0:01:41.4]}
15... Nxa1 {[%clk 0:01:59.9]} 16. Bxc4 {[%clk 0:01:39]} 16... Be6 {[%clk
0:01:51.9]} 17. Nxf6+ {[%clk 0:01:35.1]} 17... Qxf6 {[%clk 0:01:53.8]} 18. Bxe6+
{[%clk 0:01:34.6]} 18... Qxe6 {[%clk 0:01:55.7]} 19. Nd4 {[%clk 0:01:27.4]}
19... Qa2 {[%clk 0:01:11.8]} 20. Qxa1 {[%clk 0:01:26]} 20... Qxa1 {[%clk
0:01:07.7]} 21. Rxa1 {[%clk 0:01:27.9]} 21... Ba5 {[%clk 0:00:26.9]} 22. g3
{[%clk 0:01:16.5]} 22... Kf7 {[%clk 0:00:14.3]} 23. Rb1 {[%clk 0:00:45.2]} 23...
Rfc8 {[%clk 0:00:10.5]} 24. b4 {[%clk 0:00:40.1]} 24... Bd8 {[%clk 0:00:10.3]}
25. a5 {[%clk 0:00:38.1]} 25... a6 {[%clk 0:00:03.5]} 26. b6 {[%clk 0:00:36.2]}
26... Rab8 {[%clk 0:00:04.9]} 27. Nb3 {[%clk 0:00:32.9]} 27... Be7 {[%clk
0:00:03.3]} 28. Bc5 {[%clk 0:00:29.9]} 28... Bf6 {[%clk 0:00:04.3]} 29. Bd6
{[%clk 0:00:28.2]} 1-0

[Event "*** Titled Tuesday 3|2 Blitz (Late)"]
[Site "Chess.com"]
[Date "2016.12.06"]
[Round "4"]
[White "SwiftyMcBishop"]
[Black "Larax"]
[Result "1-0"]
[WhiteElo "2124"]
[BlackElo "1898"]
[TimeControl "180+2"]
[EndTime "17:44:36 PST"]
[Termination "SwiftyMcBishop won by resignation"]

1. e4 {[%clk 0:03:02]} 1... e5 {[%clk 0:03:00.5]} 2. Nf3 {[%clk 0:02:48.6]} 2...
Nc6 {[%clk 0:03:01]} 3. Bb5 {[%clk 0:02:44.5]} 3... a6 {[%clk 0:03:01.4]} 4. Ba4
{[%clk 0:02:37]} 4... Nf6 {[%clk 0:02:58]} 5. O-O {[%clk 0:02:32.6]} 5... Be7
{[%clk 0:02:58.7]} 6. Re1 {[%clk 0:02:32.6]} 6... b5 {[%clk 0:02:59.6]} 7. Bb3
{[%clk 0:02:30]} 7... d6 {[%clk 0:02:58.9]} 8. c3 {[%clk 0:02:31]} 8... O-O
{[%clk 0:02:59.2]} 9. d4 {[%clk 0:02:32.2]} 9... Bg4 {[%clk 0:02:59.4]} 10. Be3
{[%clk 0:02:30.2]} 10... d5 {[%clk 0:03:00.9]} 11. dxe5 {[%clk 0:02:22.5]} 11...
Nxe5 {[%clk 0:02:44.4]} 12. exd5 {[%clk 0:02:08.6]} 12... Bxf3 {[%clk
0:02:19.4]} 13. gxf3 {[%clk 0:02:10.5]} 13... Qd7 {[%clk 0:02:20.7]} 14. Bf4
{[%clk 0:02:02.7]} 14... Ng6 {[%clk 0:02:05.1]} 15. Bg3 {[%clk 0:02:00.2]} 15...
h5 {[%clk 0:02:05.6]} 16. h4 {[%clk 0:01:49.1]} 16... Bd6 {[%clk 0:01:45.2]} 17.
Qd2 {[%clk 0:01:30]} 17... Qf5 {[%clk 0:00:49.3]} 18. Qg5 {[%clk 0:00:52.5]}
18... Qxf3 {[%clk 0:00:40.3]} 19. Nd2 {[%clk 0:00:51.6]} 19... Qg4 {[%clk
0:00:20.1]} 20. Qxg4 {[%clk 0:00:48.4]} 20... Nxg4 {[%clk 0:00:21.4]} 21. Ne4
{[%clk 0:00:34.8]} 21... Rad8 {[%clk 0:00:18.4]} 22. Nxd6 {[%clk 0:00:33.9]}
22... cxd6 {[%clk 0:00:19.6]} 23. c4 {[%clk 0:00:24.2]} 23... b4 {[%clk
0:00:18.3]} 24. a3 {[%clk 0:00:25]} 24... f5 {[%clk 0:00:16.3]} 25. f3 {[%clk
0:00:20.6]} 25... N4e5 {[%clk 0:00:17.4]} 26. Kg2 {[%clk 0:00:20]} 26... f4
{[%clk 0:00:18.5]} 27. Bf2 {[%clk 0:00:21.1]} 27... Rb8 {[%clk 0:00:15.2]} 28.
a4 {[%clk 0:00:18.3]} 28... Nd3 {[%clk 0:00:10.9]} 29. Re6 {[%clk 0:00:17.6]}
29... Nxb2 {[%clk 0:00:10.4]} 30. Rxg6 {[%clk 0:00:17.8]} 1-0

[Event "*** Titled Tuesday 3|2 Blitz (Late)"]
[Site "Chess.com"]
[Date "2016.12.06"]
[Round "4"]
[White "gmshanmeruga"]
[Black "Scott-fox21"]
[Result "1-0"]
[WhiteElo "2311"]
[BlackElo "2180"]
[TimeControl "180+2"]
[EndTime "17:44:52 PST"]
[Termination "gmshanmeruga won by resignation"]

1. e4 {[%clk 0:03:01.9]} 1... c5 {[%clk 0:03:01]} 2. Nc3 {[%clk 0:03:00.2]} 2...
a6 {[%clk 0:03:01.5]} 3. Nf3 {[%clk 0:02:57.8]} 3... b5 {[%clk 0:02:55.6]} 4. d4
{[%clk 0:02:55.8]} 4... cxd4 {[%clk 0:02:56.8]} 5. Nxd4 {[%clk 0:02:57.7]} 5...
Bb7 {[%clk 0:02:58]} 6. Bd3 {[%clk 0:02:51]} 6... e6 {[%clk 0:02:52.6]} 7. O-O
{[%clk 0:02:45.4]} 7... Bc5 {[%clk 0:02:51.4]} 8. Nb3 {[%clk 0:02:41.2]} 8...
Be7 {[%clk 0:02:52.1]} 9. e5 {[%clk 0:02:35.2]} 9... d6 {[%clk 0:02:45.4]} 10.
exd6 {[%clk 0:02:30.2]} 10... Qxd6 {[%clk 0:02:44.1]} 11. Na5 {[%clk 0:02:27.3]}
11... Qc7 {[%clk 0:02:07.1]} 12. Nxb7 {[%clk 0:02:24.5]} 12... Qxb7 {[%clk
0:02:09]} 13. Ne4 {[%clk 0:02:20.6]} 13... Nf6 {[%clk 0:01:58.4]} 14. Qf3 {[%clk
0:02:18.4]} 14... Nc6 {[%clk 0:01:37.1]} 15. Bh6 {[%clk 0:02:12.8]} 15... Rg8
{[%clk 0:00:42.4]} 16. Bxg7 {[%clk 0:02:04.7]} 16... Rxg7 {[%clk 0:00:21.8]} 17.
Nxf6+ {[%clk 0:01:58.3]} 17... Bxf6 {[%clk 0:00:23.7]} 18. Qxf6 {[%clk
0:01:59.7]} 18... Kf8 {[%clk 0:00:25.1]} 19. Be4 {[%clk 0:01:53.9]} 19... Rc8
{[%clk 0:00:24.4]} 20. Rfd1 {[%clk 0:01:48.3]} 20... Qe7 {[%clk 0:00:24]} 21.
Qc3 {[%clk 0:01:42.3]} 21... Na7 {[%clk 0:00:24.7]} 22. Qe3 {[%clk 0:01:36.8]}
22... Qc5 {[%clk 0:00:22.3]} 23. Rd8+ {[%clk 0:01:30.2]} 23... Ke7 {[%clk
0:00:22.1]} 24. Rd4 {[%clk 0:01:23]} 24... e5 {[%clk 0:00:19.2]} 25. Rd5 {[%clk
0:01:19.9]} 25... Qxe3 {[%clk 0:00:20]} 26. Rxe5+ {[%clk 0:01:17.7]} 26... Kf6
{[%clk 0:00:20.9]} 27. Rf5+ {[%clk 0:01:17]} 27... Ke6 {[%clk 0:00:18.1]} 28.
fxe3 {[%clk 0:01:17.8]} 28... Rd8 {[%clk 0:00:17.2]} 29. Rc5 {[%clk 0:01:12.7]}
29... Rd2 {[%clk 0:00:17.6]} 30. Rc7 {[%clk 0:01:07.7]} 30... Rg4 {[%clk
0:00:04.9]} 31. Bf3 {[%clk 0:01:04.1]} 31... Rc4 {[%clk 0:00:06.2]} 32. Rxa7
{[%clk 0:01:00.7]} 32... Rcxc2 {[%clk 0:00:07.6]} 33. Rxa6+ {[%clk 0:00:57.8]}
33... Ke5 {[%clk 0:00:08.5]} 34. Ra5 {[%clk 0:00:53.2]} 34... Rxb2 {[%clk
0:00:09.5]} 35. a4 {[%clk 0:00:50.3]} 35... Kd6 {[%clk 0:00:09.8]} 36. Rxb5
{[%clk 0:00:47.6]} 36... Rbc2 {[%clk 0:00:08.8]} 37. a5 {[%clk 0:00:45.2]} 37...
Rc7 {[%clk 0:00:08.2]} 38. a6 {[%clk 0:00:45.7]} 38... Ra7 {[%clk 0:00:08.9]}
39. Rb7 {[%clk 0:00:44.9]} 1-0

[Event "*** Titled Tuesday 3|2 Blitz (Late)"]
[Site "Chess.com"]
[Date "2016.12.06"]
[Round "4"]
[White "Fandorine"]
[Black "FranklinAPalomo"]
[Result "1/2-1/2"]
[WhiteElo "2608"]
[BlackElo "2401"]
[TimeControl "180+2"]
[EndTime "17:44:56 PST"]
[Termination "Game drawn - insufficient material"]

1. e4 {[%clk 0:03:02]} 1... c5 {[%clk 0:03:02]} 2. Nf3 {[%clk 0:02:55.6]} 2...
d6 {[%clk 0:03:00.5]} 3. d4 {[%clk 0:02:56.6]} 3... cxd4 {[%clk 0:03:02.4]} 4.
Nxd4 {[%clk 0:02:58.5]} 4... Nf6 {[%clk 0:03:03.6]} 5. Nc3 {[%clk 0:03:00]} 5...
e6 {[%clk 0:03:05.2]} 6. g4 {[%clk 0:02:59.3]} 6... e5 {[%clk 0:03:06.1]} 7.
Bb5+ {[%clk 0:02:54.9]} 7... Bd7 {[%clk 0:03:06.9]} 8. Bxd7+ {[%clk 0:02:55.7]}
8... Qxd7 {[%clk 0:03:08.8]} 9. Nf5 {[%clk 0:02:57.3]} 9... h5 {[%clk
0:03:10.1]} 10. Bg5 {[%clk 0:02:58.7]} 10... Nh7 {[%clk 0:03:09.7]} 11. Bh4
{[%clk 0:02:55.4]} 11... hxg4 {[%clk 0:03:10.4]} 12. Nd5 {[%clk 0:02:56.3]}
12... Na6 {[%clk 0:03:09.8]} 13. Qxg4 {[%clk 0:02:51.4]} 13... g6 {[%clk
0:03:09.2]} 14. Nfe3 {[%clk 0:02:50.4]} 14... Qxg4 {[%clk 0:03:05.5]} 15. Nxg4
{[%clk 0:02:52.3]} 15... Kd7 {[%clk 0:03:07]} 16. f3 {[%clk 0:02:47.7]} 16...
Ke6 {[%clk 0:03:01.4]} 17. b4 {[%clk 0:02:42.9]} 17... Rc8 {[%clk 0:03:01.9]}
18. Nge3 {[%clk 0:02:37.4]} 18... Bh6 {[%clk 0:02:55.6]} 19. a3 {[%clk
0:02:37.4]} 19... Bg5 {[%clk 0:02:48.2]} 20. Bf2 {[%clk 0:02:36.1]} 20... b6
{[%clk 0:02:45.7]} 21. c4 {[%clk 0:02:34.2]} 21... Bxe3 {[%clk 0:02:42.8]} 22.
Nxe3 {[%clk 0:02:34.4]} 22... Ng5 {[%clk 0:02:43.6]} 23. Ke2 {[%clk 0:02:34.9]}
23... Rh3 {[%clk 0:02:45.1]} 24. Bg3 {[%clk 0:02:35.4]} 24... f5 {[%clk
0:02:42.6]} 25. exf5+ {[%clk 0:02:36.1]} 25... gxf5 {[%clk 0:02:44.5]} 26. f4
{[%clk 0:02:37.1]} 26... Ne4 {[%clk 0:02:43.9]} 27. Rhg1 {[%clk 0:02:36.5]}
27... Rg8 {[%clk 0:02:26.4]} 28. Rad1 {[%clk 0:02:23.8]} 28... Nxg3+ {[%clk
0:02:20.6]} 29. hxg3 {[%clk 0:02:23.9]} 29... Rgxg3 {[%clk 0:02:22.5]} 30. Rxg3
{[%clk 0:02:25]} 30... Rxg3 {[%clk 0:02:24.1]} 31. Rxd6+ {[%clk 0:02:17.3]}
31... Kxd6 {[%clk 0:02:21.8]} 32. Nxf5+ {[%clk 0:02:18.6]} 32... Ke6 {[%clk
0:02:23.7]} 33. Nxg3 {[%clk 0:02:19.8]} 33... exf4 {[%clk 0:02:25.6]} 34. Nh5
{[%clk 0:02:21.5]} 34... Ke5 {[%clk 0:02:27.2]} 35. Kf3 {[%clk 0:02:19.4]} 35...
Kd4 {[%clk 0:02:27]} 36. Nxf4 {[%clk 0:02:08.1]} 36... Kxc4 {[%clk 0:02:26.9]}
37. Ne6 {[%clk 0:01:48.5]} 37... Nb8 {[%clk 0:01:40.5]} 38. Ke4 {[%clk 0:01:42]}
38... Nc6 {[%clk 0:01:39.3]} 39. Nc7 {[%clk 0:01:38.5]} 39... Nd4 {[%clk
0:01:19.9]} 40. Ne8 {[%clk 0:01:26]} 40... Nb5 {[%clk 0:01:19.9]} 41. Ke5 {[%clk
0:01:08.7]} 41... Nxa3 {[%clk 0:01:19.7]} 42. Kd6 {[%clk 0:01:09.4]} 42... Nb5+
{[%clk 0:01:18.8]} 43. Kc6 {[%clk 0:01:11.3]} 43... Kxb4 {[%clk 0:01:20.7]} 44.
Nf6 {[%clk 0:01:10.4]} 44... Nd4+ {[%clk 0:01:21.5]} 45. Kb7 {[%clk 0:01:11.3]}
45... a5 {[%clk 0:01:22.5]} 46. Nd5+ {[%clk 0:01:10.9]} 46... Kb3 {[%clk
0:01:23.5]} 47. Nxb6 {[%clk 0:01:08.8]} 47... Ne6 {[%clk 0:01:23.2]} 48. Ka6
{[%clk 0:01:08.7]} 48... Kb4 {[%clk 0:01:24.3]} 49. Nd5+ {[%clk 0:01:10.1]}
49... Kc5 {[%clk 0:01:25.1]} 50. Kxa5 {[%clk 0:01:11.1]} 50... Kxd5 {[%clk
0:01:27]} 1/2-1/2

[Event "*** Titled Tuesday 3|2 Blitz (Late)"]
[Site "Chess.com"]
[Date "2016.12.06"]
[Round "4"]
[White "Quiet_Desperation"]
[Black "LawrenceTrent"]
[Result "0-1"]
[WhiteElo "2303"]
[BlackElo "2422"]
[TimeControl "180+2"]
[EndTime "17:45:04 PST"]
[Termination "LawrenceTrent won by resignation"]

1. e4 {[%clk 0:02:59.8]} 1... e5 {[%clk 0:03:00.7]} 2. Nf3 {[%clk 0:03:00.5]}
2... Nc6 {[%clk 0:03:02.1]} 3. Bb5 {[%clk 0:03:02]} 3... a6 {[%clk 0:03:03]} 4.
Ba4 {[%clk 0:03:02.9]} 4... d6 {[%clk 0:03:04.3]} 5. d3 {[%clk 0:03:02.9]} 5...
Ne7 {[%clk 0:03:04.3]} 6. c3 {[%clk 0:03:04]} 6... g6 {[%clk 0:03:04.9]} 7. O-O
{[%clk 0:03:03.8]} 7... Bg7 {[%clk 0:03:06]} 8. h3 {[%clk 0:03:05.1]} 8... O-O
{[%clk 0:03:07.1]} 9. Bb3 {[%clk 0:02:59.3]} 9... h6 {[%clk 0:03:07.5]} 10. Be3
{[%clk 0:02:59.6]} 10... Kh7 {[%clk 0:03:08.5]} 11. Na3 {[%clk 0:02:58.8]} 11...
f5 {[%clk 0:03:09.5]} 12. exf5 {[%clk 0:02:58.3]} 12... gxf5 {[%clk 0:03:09.9]}
13. Bc2 {[%clk 0:02:57]} 13... f4 {[%clk 0:03:10.5]} 14. Bd2 {[%clk 0:02:53]}
14... Bf6 {[%clk 0:03:10.5]} 15. Re1 {[%clk 0:02:42.4]} 15... Rg8 {[%clk
0:03:11]} 16. d4+ {[%clk 0:02:33.6]} 16... Kh8 {[%clk 0:03:11.5]} 17. dxe5
{[%clk 0:02:24.9]} 17... dxe5 {[%clk 0:03:00.4]} 18. Kh2 {[%clk 0:01:41.7]}
18... Qf8 {[%clk 0:02:59.8]} 19. Nc4 {[%clk 0:01:35]} 19... Qg7 {[%clk
0:02:59.8]} 20. Rg1 {[%clk 0:01:32.4]} 20... Be6 {[%clk 0:02:59.3]} 21. Qe2
{[%clk 0:01:21.6]} 21... b5 {[%clk 0:02:58.1]} 22. Na3 {[%clk 0:01:20.3]} 22...
Rae8 {[%clk 0:02:46.6]} 23. g4 {[%clk 0:00:59.2]} 23... Ng6 {[%clk 0:02:27.6]}
24. g5 {[%clk 0:00:45.7]} 24... hxg5 {[%clk 0:02:27.5]} 25. Nxg5 {[%clk
0:00:46.2]} 25... Qh6 {[%clk 0:02:10.8]} 26. Nxe6 {[%clk 0:00:44]} 26... Rxe6
{[%clk 0:02:11.4]} 27. Bxg6 {[%clk 0:00:37.4]} 27... Rxg6 {[%clk 0:02:10.2]} 28.
Rxg6 {[%clk 0:00:38.5]} 28... Qxg6 {[%clk 0:02:10.5]} 29. Bxf4 {[%clk
0:00:37.8]} 29... Bh4 {[%clk 0:01:52.3]} 30. Bg3 {[%clk 0:00:35.2]} 30... Bxg3+
{[%clk 0:01:53.1]} 31. fxg3 {[%clk 0:00:36.3]} 31... e4 {[%clk 0:01:53.8]} 32.
Rf1 {[%clk 0:00:34.3]} 32... Ne5 {[%clk 0:01:54.5]} 33. Nc2 {[%clk 0:00:29]}
33... Nf3+ {[%clk 0:01:53.5]} 34. Kh1 {[%clk 0:00:27.3]} 34... c5 {[%clk
0:01:51.4]} 35. Ne1 {[%clk 0:00:24]} 35... Qxg3 {[%clk 0:01:33.4]} 36. Nxf3
{[%clk 0:00:23.4]} 36... exf3 {[%clk 0:01:33.7]} 37. Qxf3 {[%clk 0:00:24.4]}
37... Qxf3+ {[%clk 0:01:33.5]} 38. Rxf3 {[%clk 0:00:25.4]} 38... Re2 {[%clk
0:01:35]} 39. Rf6 {[%clk 0:00:21.5]} 39... Rxb2 {[%clk 0:01:25.6]} 40. Rxa6
{[%clk 0:00:22.3]} 40... c4 {[%clk 0:01:26.3]} 41. Ra5 {[%clk 0:00:21.8]} 41...
b4 {[%clk 0:01:24.5]} 42. cxb4 {[%clk 0:00:23.1]} 42... c3 {[%clk 0:01:25.7]}
43. Rc5 {[%clk 0:00:23.7]} 43... c2 {[%clk 0:01:26.4]} 44. b5 {[%clk 0:00:24.2]}
44... Rb1+ {[%clk 0:01:26.8]} 45. Kg2 {[%clk 0:00:25.2]} 45... c1=Q {[%clk
0:01:28.2]} 46. Rxc1 {[%clk 0:00:26.4]} 46... Rxc1 {[%clk 0:01:29.7]} 47. a4
{[%clk 0:00:28]} 47... Ra1 {[%clk 0:01:27.4]} 48. b6 {[%clk 0:00:27.6]} 48...
Rxa4 {[%clk 0:01:25.9]} 0-1